fUST/lending_fUST_20240830
["ID","MTS","AMOUNT","RATE_DAILY","PERIOD"]
[336644597,1724997039430,-600.13142375,0.00021069,2]
[336644599,1724997039440,-600.13142375,0.00021069,2]
[336644602,1724997039451,-600.13142375,0.00021069,2]
[336644604,1724997039465,-600.13142375,0.00021069,2]
[336644606,1724997039475,-600.13142375,0.00021069,2]
[336644608,1724997039486,-600.13142375,0.00021069,2]
[336644610,1724997039495,-600.13142375,0.00021069,2]
[336644612,1724997039506,-600.13142375,0.00021069,2]
[336644614,1724997039517,-600.13142375,0.00021069,2]
[336644616,1724997039528,-600.13142375,0.00021069,2]
[336644618,1724997039537,-600.13142375,0.00021069,2]
[336644620,1724997039548,-600.13142375,0.00021069,2]
[336644622,1724997039558,-600.13142375,0.00021069,2]
[336644624,1724997039568,-600.13142375,0.00021069,2]
[336644626,1724997039578,-600.13142375,0.00021069,2]
[336644628,1724997039589,-600.13142375,0.00021069,2]
[336644630,1724997039598,-600.13142375,0.00021069,2]
[336644633,1724997039608,-600.13142375,0.00021069,2]
[336644635,1724997039618,-600.13142375,0.00021069,2]
[336644637,1724997039628,-600.13142375,0.00021069,2]
[336644639,1724997039637,-600.13142375,0.00021069,2]
[336644641,1724997039646,-600.13142375,0.00021069,2]
[336644643,1724997039656,-600.13142375,0.00021069,2]
[336644645,1724997039666,-600.13142375,0.00021069,2]
[336644647,1724997039676,-600.13142375,0.00021069,2]
[336644649,1724997039686,-600.13142375,0.00021069,2]
[336644651,1724997039696,-600.13142375,0.00021069,2]
[336644653,1724997039707,-600.13142375,0.00021069,2]
[336644655,1724997039718,-600.13142373,0.00021069,2]
[336644657,1724997039727,-600.13142373,0.00021069,2]
[336644659,1724997039737,-600.13142373,0.00021069,2]
[336644661,1724997039747,-600.13142373,0.00021069,2]
[336644663,1724997039756,-600.13142373,0.00021069,2]
[336644665,1724997039766,-600.13142373,0.00021069,2]
[336644667,1724997039776,-3000.0,0.0002107,2]
[336644669,1724997039785,-500.22555746,0.00021073,2]
[336644672,1724997039797,-500.0,0.00021073,2]
[336644674,1724997039808,-330.49259433,0.00021073,2]
[336644676,1724997039819,-3000.0,0.0002108,2]
[336644691,1724997039957,-453.9,0.00021087,3]
[336644693,1724997039968,-226.95,0.00021087,3]
[336644695,1724997039979,-680.85,0.00021087,3]
[336644697,1724997039989,-500.0,0.00021089,2]
[336644699,1724997039999,-500.0,0.00021089,2]
[336644701,1724997040009,-543.32,0.00021089,2]
[336644703,1724997040020,-3000.0,0.0002109,2]
[336644705,1724997040031,-2294.15,0.00021097,2]
[336644707,1724997040043,-500.0,0.00021097,2]
[336644710,1724997040055,-500.0,0.00021097,2]
[336644712,1724997040065,-500.0,0.00021097,2]
[336644714,1724997040074,-500.0,0.00021097,2]
[336644716,1724997040084,-500.0,0.00021097,2]
[336644718,1724997040094,-500.0,0.00021097,2]
[336644720,1724997040105,-500.0,0.00021097,2]
[336644722,1724997040116,-500.0,0.00021097,2]
[336644724,1724997040125,-3490.78,0.00021097,2]
[336644727,1724997040136,-5579.14,0.00021097,2]
[336644729,1724997040146,-1360.61,0.00021097,2]
[336644731,1724997040157,-500.0,0.00021097,2]
[336644733,1724997040167,-500.0,0.00021097,2]
[336644735,1724997040176,-1189.51,0.00021097,2]
[336644737,1724997040185,-500.0,0.00021097,2]
[336644739,1724997040195,-500.0,0.00021097,2]
[336644741,1724997040205,-500.0,0.00021097,2]
[336644743,1724997040215,-500.0,0.00021097,2]
[336644745,1724997040225,-500.0,0.00021097,2]
[336644747,1724997040235,-806.81,0.00021097,2]
[336644749,1724997040245,-500.0,0.00021097,2]
[336644751,1724997040254,-500.0,0.00021097,2]
[336644753,1724997040264,-500.0,0.00021097,2]
[336644756,1724997040275,-500.0,0.00021097,2]
[336644758,1724997040285,-1168.41,0.00021097,2]
[336644760,1724997040296,-3000.0,0.000211,2]
[336644762,1724997040305,-3000.0,0.0002111,2]
[336644763,1724997040314,-806.81,0.00021118,2]
[336644766,1724997040325,-500.0,0.00021118,2]
[336644768,1724997040337,-511.67113014,0.00021118,2]
[336644770,1724997040347,-500.0,0.00021119,2]
[336644772,1724997040358,-500.0,0.00021119,2]
[336644774,1724997040368,-556.12116077,0.00021119,2]
[336644776,1724997040378,-500.0,0.00021119,2]
[336644778,1724997040387,-502.72225433,0.00021119,2]
[336644780,1724997040397,-500.0,0.00021119,2]
[336644782,1724997040406,-502.79978887,0.00021119,2]
[336644784,1724997040417,-500.0,0.00021119,2]
[336644786,1724997040426,-500.0,0.00021119,2]
[336644788,1724997040437,-500.0,0.00021119,2]
[336644790,1724997040446,-502.80589023,0.00021119,2]
[336644792,1724997040456,-500.0,0.00021119,2]
[336644794,1724997040469,-576.44003261,0.00021119,2]
[336644796,1724997040479,-500.0,0.00021119,2]
[336644798,1724997040489,-500.0,0.00021119,2]
[336644800,1724997040499,-500.92384882,0.00021119,2]
[336644802,1724997040509,-500.0,0.00021119,2]
[336644804,1724997040518,-11342.43,0.00021119,2]
[336644807,1724997040529,-502.74677117,0.00021119,2]
[336644809,1724997040542,-500.0,0.00021119,2]
[336644811,1724997040557,-501.98100109,0.00021119,2]
[336644812,1724997040566,-502.30677793,0.00021119,2]
[336644814,1724997040576,-500.0,0.00021119,2]
[336644816,1724997040586,-502.70761251,0.00021119,2]
[336644819,1724997040595,-501.53350693,0.00021119,2]
[336644820,1724997040605,-500.0,0.00021119,2]
[336644823,1724997040615,-1705.93,0.00021119,2]
[336644825,1724997040624,-503.16255707,0.00021119,2]
[336644827,1724997040634,-500.0,0.00021119,2]
[336644829,1724997040644,-500.0,0.00021119,2]
[336644830,1724997040653,-510.32658765,0.00021119,2]
[336644833,1724997040663,-1448.5,0.00021119,2]
[336644835,1724997040672,-500.0,0.00021119,2]
[336644837,1724997040682,-500.0,0.00021119,2]
[336644839,1724997040692,-500.0,0.00021119,2]
[336644841,1724997040702,-500.0,0.00021119,2]
[336644843,1724997040711,-500.0,0.00021119,2]
[336644845,1724997040721,-500.0,0.00021119,2]
[336644846,1724997040730,-501.72606161,0.00021119,2]
[336644849,1724997040741,-500.0,0.00021119,2]
[336644851,1724997040750,-500.0,0.00021119,2]
[336644853,1724997040759,-500.0,0.00021119,2]
[336644854,1724997040769,-500.0,0.00021119,2]
[336644856,1724997040778,-500.0,0.00021119,2]
[336644858,1724997040787,-508.82389732,0.00021119,2]
[336644861,1724997040802,-500.0,0.00021119,2]
[336644862,1724997040812,-500.0,0.00021119,2]
[336644865,1724997040821,-500.0,0.00021119,2]
[336644867,1724997040830,-500.0,0.00021119,2]
[336644869,1724997040839,-500.0,0.00021119,2]
[336644871,1724997040849,-501.49429034,0.00021119,2]
[336644872,1724997040858,-500.0,0.00021119,2]
[336644875,1724997040868,-503.41463821,0.00021119,2]
[336644877,1724997040877,-500.0,0.00021119,2]
[336644879,1724997040888,-500.77997714,0.00021119,2]
[336644881,1724997040898,-500.0,0.00021119,2]
[336644883,1724997040907,-500.0,0.00021119,2]
[336644885,1724997040917,-500.0,0.00021119,2]
[336644887,1724997040926,-502.2995774,0.00021119,2]
[336644889,1724997040936,-500.0,0.00021119,2]
[336644891,1724997040946,-500.0,0.00021119,2]
[336644893,1724997040956,-500.0,0.00021119,2]
[336644895,1724997040965,-500.0,0.00021119,2]
[336644897,1724997040975,-500.0,0.00021119,2]
[336644899,1724997040984,-502.26242152,0.00021119,2]
[336644901,1724997040994,-500.0,0.00021119,2]
[336644903,1724997041003,-500.0,0.00021119,2]
[336644905,1724997041013,-527.35,0.00021119,2]
[336644907,1724997041022,-500.0,0.00021119,2]
[336644909,1724997041032,-500.0,0.00021119,2]
[336644911,1724997041043,-502.26416838,0.00021119,2]
[336644913,1724997041052,-500.0,0.00021119,2]
[336644915,1724997041061,-500.0,0.00021119,2]
[336644917,1724997041071,-363.21330673,0.00021119,2]
[336644919,1724997041080,-500.0,0.00021119,2]
[336644921,1724997041089,-500.0,0.00021119,2]
[336644923,1724997041099,-500.0,0.00021119,2]
[336644925,1724997041109,-500.0,0.00021119,2]
[336644927,1724997041118,-374.55550295,0.00021119,2]
[336644930,1724997041134,-77.12414765,0.00021119,2]
[336644932,1724997041143,-500.0,0.00021119,2]
[336644934,1724997041153,-500.0,0.00021119,2]
[336644936,1724997041163,-502.08055809,0.00021119,2]
[336644938,1724997041173,-500.0,0.00021119,2]
[336644940,1724997041184,-500.0,0.00021119,2]
[336644942,1724997041194,-500.0,0.00021119,2]
[336644944,1724997041204,-500.0,0.00021119,2]
[336644946,1724997041214,-500.0,0.00021119,2]
[336644948,1724997041224,-500.64340672,0.00021119,2]
[336644951,1724997041238,-500.0,0.00021119,2]
[336644953,1724997041248,-500.0,0.00021119,2]
[336644955,1724997041258,-500.0,0.00021119,2]
[336644957,1724997041268,-500.0,0.00021119,2]
[336644959,1724997041278,-500.0,0.00021119,2]
[336644961,1724997041287,-500.0,0.00021119,2]
[336644963,1724997041298,-500.72094006,0.00021119,2]
[336644964,1724997041307,-500.0,0.00021119,2]
[336644966,1724997041317,-500.0,0.00021119,2]
[336644967,1724997041327,-500.0,0.00021119,2]
[336644969,1724997041336,-500.0,0.00021119,2]
[336644971,1724997041346,-500.0,0.00021119,2]
[336644973,1724997041355,-500.0,0.00021119,2]
[336644975,1724997041365,-2966.83,0.00021119,2]
[336644976,1724997041374,-500.0,0.00021119,2]
[336644978,1724997041384,-500.0,0.00021119,2]
[336644980,1724997041394,-500.0,0.00021119,2]
[336644982,1724997041404,-500.0,0.00021119,2]
[336644983,1724997041413,-500.0,0.00021119,2]
[336644985,1724997041423,-503.04104674,0.00021119,2]
[336644987,1724997041433,-500.0,0.00021119,2]
[336644989,1724997041443,-500.0,0.00021119,2]
[336644990,1724997041452,-540.12589357,0.00021119,2]
[336644992,1724997041465,-500.0,0.00021119,2]
[336644994,1724997041474,-503.29711221,0.00021119,2]
[336644996,1724997041483,-453.77088718,0.00021119,2]
[336644997,1724997041493,-500.0,0.00021119,2]
[336644999,1724997041502,-500.0,0.00021119,2]
[336645001,1724997041512,-500.0,0.00021119,2]
[336645003,1724997041522,-500.0,0.00021119,2]
[336645004,1724997041532,-500.0,0.00021119,2]
[336645006,1724997041541,-500.0,0.00021119,2]
[336645008,1724997041551,-500.0,0.00021119,2]
[336645010,1724997041561,-500.0,0.00021119,2]
[336645012,1724997041570,-500.0,0.00021119,2]
[336645013,1724997041580,-501.77478828,0.00021119,2]
[336645015,1724997041590,-500.0,0.00021119,2]
[336645017,1724997041599,-500.0,0.00021119,2]
[336645019,1724997041608,-500.0,0.00021119,2]
[336645020,1724997041618,-500.0,0.00021119,2]
[336645022,1724997041627,-500.0,0.00021119,2]
[336645024,1724997041636,-500.0,0.00021119,2]
[336645026,1724997041646,-743.69,0.00021119,2]
[336645027,1724997041655,-501.91133178,0.00021119,2]
[336645029,1724997041665,-551.35134128,0.00021119,2]
[336645031,1724997041677,-500.0,0.00021119,2]
[336645032,1724997041685,-1867.78,0.00021119,2]
[336645034,1724997041695,-500.0,0.00021119,2]
[336645036,1724997041704,-500.0,0.00021119,2]
[336645038,1724997041714,-500.39870779,0.00021119,2]
[336645040,1724997041724,-2270.01,0.00021119,2]
[336645042,1724997041733,-500.0,0.00021119,2]
[336645043,1724997041743,-500.0,0.00021119,2]
[336645045,1724997041753,-3000.0,0.0002112,2]
[336645047,1724997041763,-280.42060292,0.00021129,2]
[336645049,1724997041772,-3000.0,0.0002113,2]
[336645051,1724997041783,-3000.0,0.0002114,2]
[336645052,1724997041794,-806.81,0.00021149,2]
[336645054,1724997041804,-3000.0,0.0002115,2]
[336645056,1724997041815,-3000.0,0.0002116,2]
[336645058,1724997041825,-3000.0,0.0002117,2]
[336645060,1724997041835,-500.50433157,0.00021173,2]
[336645062,1724997041844,-501.88062067,0.00021173,2]
[336645064,1724997041855,-500.36073618,0.00021173,2]
[336645066,1724997041866,-312.20572087,0.00021173,2]
[336645067,1724997041876,-500.14659531,0.00021173,2]
[336645069,1724997041886,-500.0,0.00021173,2]
[336645071,1724997041896,-500.0,0.00021173,2]
[336645073,1724997041905,-3000.0,0.0002118,2]
[336645075,1724997041915,-3000.0,0.0002119,2]
[336645076,1724997041924,-3000.0,0.000212,2]
[336645078,1724997041933,-3000.0,0.0002121,2]
[336645080,1724997041943,-3000.0,0.0002122,2]
[336645082,1724997041954,-3000.0,0.0002123,2]
[336645084,1724997041963,-3000.0,0.0002124,2]
[336645086,1724997041973,-3000.0,0.0002125,2]
[336645087,1724997041983,-3000.0,0.0002126,2]
[336645089,1724997041994,-465.36430702,0.00021261,2]
[336645091,1724997042003,-3000.0,0.0002127,2]
[336645092,1724997042013,-224.90514,0.00021278,2]
[336645094,1724997042022,-806.81,0.00021279,2]
[336645096,1724997042031,-3000.0,0.0002128,2]
[336645098,1724997042040,-3473.353169,0.0002129,2]
[336645100,1724997042050,-500.0,0.00021363,2]
[336645101,1724997042060,-2294.15,0.00021371,2]
[336645103,1724997042070,-417.87928284,0.00021371,2]
[336645105,1724997042081,-500.0,0.00021371,2]
[336645107,1724997042090,-3490.78,0.00021371,2]
[336645109,1724997042101,-5579.14,0.00021371,2]
[336645111,1724997042111,-1360.61,0.00021371,2]
[336645113,1724997042122,-1189.51,0.00021371,2]
[336645115,1724997042132,-500.0,0.00021371,2]
[336645117,1724997042143,-500.0,0.00021371,2]
[336645118,1724997042153,-1168.41,0.00021371,2]
[336645120,1724997042162,-500.0,0.00021393,2]
[336645122,1724997042172,-500.0,0.00021393,2]
[336645124,1724997042182,-504.309799,0.00021393,2]
[336645126,1724997042192,-500.0,0.00021393,2]
[336645128,1724997042201,-500.0,0.00021393,2]
[336645130,1724997042212,-504.60200759,0.00021393,2]
[336645131,1724997042222,-409.12065544,0.00021393,2]
[336645133,1724997042232,-500.0,0.00021393,2]
[336645135,1724997042242,-11342.43,0.00021393,2]
[336645137,1724997042252,-506.5555306,0.00021393,2]
[336645139,1724997042262,-500.0,0.00021393,2]
[336645141,1724997042274,-500.0,0.00021393,2]
[336645143,1724997042284,-1705.93,0.00021393,2]
[336645144,1724997042295,-500.0,0.00021393,2]
[336645146,1724997042306,-279.99716904,0.00021393,2]
[336645148,1724997042316,-1448.5,0.00021393,2]
[336645150,1724997042325,-500.0,0.00021393,2]
[336645152,1724997042335,-500.0,0.00021393,2]
[336645154,1724997042346,-500.0,0.00021393,2]
[336645155,1724997042356,-500.0,0.00021393,2]
[336645157,1724997042366,-609.64966793,0.00021393,2]
[336645159,1724997042375,-500.0,0.00021393,2]
[336645161,1724997042384,-500.0,0.00021393,2]
[336645163,1724997042394,-500.0,0.00021393,2]
[336645164,1724997042404,-500.0,0.00021393,2]
[336645166,1724997042414,-506.49668821,0.00021393,2]
[336645168,1724997042423,-500.0,0.00021393,2]
[336645170,1724997042432,-500.0,0.00021393,2]
[336645172,1724997042442,-189.25443178,0.00021393,2]
[336645173,1724997042452,-302.05826955,0.00021393,2]
[336645175,1724997042464,-500.0,0.00021393,2]
[336645177,1724997042476,-500.0,0.00021393,2]
[336645179,1724997042487,-500.0,0.00021393,2]
[336645181,1724997042496,-500.0,0.00021393,2]
[336645183,1724997042507,-527.35,0.00021393,2]
[336645184,1724997042518,-500.0,0.00021393,2]
[336645194,1724997042616,-503.56720717,0.00021393,2]
[336645196,1724997042628,-500.0,0.00021393,2]
[336645197,1724997042638,-500.0,0.00021393,2]
[336645199,1724997042648,-500.0,0.00021393,2]
[336645201,1724997042657,-500.0,0.00021393,2]
[336645203,1724997042667,-504.84909232,0.00021393,2]
[336645205,1724997042677,-500.0,0.00021393,2]
[336645206,1724997042686,-500.0,0.00021393,2]
[336645208,1724997042695,-500.0,0.00021393,2]
[336645210,1724997042705,-500.0,0.00021393,2]
[336645212,1724997042715,-500.0,0.00021393,2]
[336645214,1724997042724,-501.59607603,0.00021393,2]
[336645216,1724997042734,-500.0,0.00021393,2]
[336645217,1724997042743,-2966.83,0.00021393,2]
[336645219,1724997042752,-599.71086887,0.00021393,2]
[336645221,1724997042761,-508.44464224,0.00021393,2]
[336645223,1724997042771,-500.0,0.00021393,2]
[336645225,1724997042780,-500.0,0.00021393,2]
[336645226,1724997042790,-500.0,0.00021393,2]
[336645228,1724997042799,-501.077188,0.00021393,2]
[336645230,1724997042809,-504.11709749,0.00021393,2]
[336645232,1724997042818,-500.0,0.00021393,2]
[336645234,1724997042828,-501.70910792,0.00021393,2]
[336645235,1724997042837,-500.82516217,0.00021393,2]
[336645237,1724997042846,-500.0,0.00021393,2]
[336645239,1724997042856,-503.79129995,0.00021393,2]
[336645241,1724997042866,-500.0,0.00021393,2]
[336645243,1724997042876,-500.0,0.00021393,2]
[336645244,1724997042885,-743.69,0.00021393,2]
[336645246,1724997042895,-500.0,0.00021393,2]
[336645248,1724997042905,-1659.01060773,0.00021393,2]
[336645257,1724997043003,-208.76939227,0.00021393,2]
[336645259,1724997043014,-500.0,0.00021393,2]
[336645261,1724997043024,-2270.01,0.00021393,2]
[336645263,1724997043033,-621.90701556,0.00021393,2]
[336645264,1724997043043,-7510.39304043,0.00021489,2]
[336645266,1724997043053,-500.0,0.00021637,2]
[336645268,1724997043063,-2294.15,0.00021645,2]
[336645270,1724997043072,-500.0,0.00021645,2]
[336645272,1724997043083,-3490.78,0.00021645,2]
[336645274,1724997043093,-5579.14,0.00021645,2]
[336645275,1724997043102,-1360.61,0.00021645,2]
[336645277,1724997043112,-1189.51,0.00021645,2]
[336645279,1724997043122,-500.0,0.00021645,2]
[336645281,1724997043131,-500.0,0.00021645,2]
[336645283,1724997043141,-1168.41,0.00021645,2]
[336645285,1724997043151,-806.81,0.00021665,2]
[336645286,1724997043160,-502.51494121,0.00021667,2]
[336645289,1724997043169,-500.0,0.00021667,2]
[336645292,1724997043179,-583.13266837,0.00021667,2]
[336645295,1724997043189,-11342.43,0.00021667,2]
[336645298,1724997043200,-500.0,0.00021667,2]
[336645301,1724997043210,-1705.93,0.00021667,2]
[336645303,1724997043220,-599.63421461,0.00021667,2]
[336645304,1724997043231,-1448.5,0.00021667,2]
[336645307,1724997043240,-500.0,0.00021667,2]
[336645310,1724997043250,-500.0,0.00021667,2]
[336645312,1724997043260,-500.0,0.00021667,2]
[336645314,1724997043271,-500.0,0.00021667,2]
[336645316,1724997043281,-500.0,0.00021667,2]
[336645317,1724997043291,-240.3207733,0.00021667,2]
[336645319,1724997043301,-500.0,0.00021667,2]
[336645321,1724997043312,-500.0,0.00021667,2]
[336645323,1724997043323,-500.0,0.00021667,2]
[336645325,1724997043332,-519.04,0.00021667,2]
[336645327,1724997043342,-527.35,0.00021667,2]
[336645328,1724997043353,-548.13,0.00021667,2]
[336645330,1724997043362,-500.0,0.00021667,2]
[336645332,1724997043372,-500.0,0.00021667,2]
[336645334,1724997043382,-500.0,0.00021667,2]
[336645336,1724997043393,-503.40801849,0.00021667,2]
[336645338,1724997043403,-498.64,0.00021667,2]
[336645339,1724997043413,-2966.83,0.00021667,2]
[336645341,1724997043424,-500.0,0.00021667,2]
[336645343,1724997043435,-500.0,0.00021667,2]
[336645345,1724997043445,-500.0,0.00021667,2]
[336645347,1724997043457,-503.55007004,0.00021667,2]
[336645349,1724997043471,-504.12926782,0.00021667,2]
[336645351,1724997043481,-743.69,0.00021667,2]
[336645353,1724997043491,-1867.78,0.00021667,2]
[336645355,1724997043502,-502.75249614,0.00021667,2]
[336645356,1724997043513,-504.42471636,0.00021667,2]
[336645358,1724997043524,-2270.01,0.00021667,2]
[336645360,1724997043533,-1000.0,0.00021721,2]
[336645362,1724997043544,-501.20827901,0.00021721,2]
[336645364,1724997043554,-500.0,0.00021911,2]
[336645366,1724997043564,-2294.15,0.00021919,5]
[336645367,1724997043574,-500.0,0.00021919,5]
[336645369,1724997043583,-3490.78,0.00021919,5]
[336645371,1724997043593,-5579.14,0.00021919,5]
[336645373,1724997043603,-1360.61,0.00021919,5]
[336645375,1724997043615,-1189.51,0.00021919,5]
[336645377,1724997043625,-500.0,0.00021919,5]
[336645379,1724997043636,-500.0,0.00021919,5]
[336645380,1724997043645,-1168.41,0.00021919,5]
[336645382,1724997043654,-806.81,0.0002194,5]
[336645384,1724997043664,-11342.43,0.00021941,5]
[336645386,1724997043675,-500.0,0.00021941,5]
[336645388,1724997043684,-1705.93,0.00021941,5]
[336645390,1724997043695,-500.0,0.00021941,5]
[336645391,1724997043706,-1448.5,0.00021941,5]
[336645393,1724997043716,-500.0,0.00021941,5]
[336645395,1724997043726,-500.0,0.00021941,5]
[336645397,1724997043735,-468.6,0.00021941,5]
[336645399,1724997043745,-500.0,0.00021941,5]
[336645401,1724997043755,-203.95355027,0.00021941,5]
[336645403,1724997043765,-527.35,0.00021941,5]
[336645405,1724997043775,-192.53,0.00021941,5]
[336645407,1724997043785,-536.66,0.00021941,5]
[336645408,1724997043796,-500.0,0.00021941,5]
[336645410,1724997043806,-2966.83,0.00021941,5]
[336645412,1724997043816,-500.0,0.00021941,5]
[336645414,1724997043826,-500.0,0.00021941,5]
[336645416,1724997043835,-743.69,0.00021941,5]
[336645418,1724997043845,-1867.78,0.00021941,5]
[336645420,1724997043858,-2270.01,0.00021941,5]
[336645422,1724997043868,-7510.39304043,0.00021959,2]
[336645424,1724997043877,-500.0,0.00022185,5]
[336645426,1724997043887,-2294.15,0.00022193,5]
[336645428,1724997043897,-500.0,0.00022193,5]
[336645429,1724997043906,-3490.78,0.00022193,5]
[336645432,1724997043916,-5579.14,0.00022193,5]
[336645435,1724997043925,-1360.61,0.00022193,5]
[336645438,1724997043934,-1189.51,0.00022193,5]
[336645441,1724997043944,-500.0,0.00022193,5]
[336645444,1724997043955,-500.0,0.00022193,5]
[336645446,1724997043965,-1168.41,0.00022193,5]
[336645448,1724997043976,-806.81,0.00022214,5]
[336645450,1724997043986,-11342.43,0.00022215,5]
[336645452,1724997043995,-388.76879259,0.00022215,5]
[336645453,1724997044004,-1705.93,0.00022215,5]
[336645455,1724997044013,-1448.5,0.00022215,5]
[336645457,1724997044023,-500.0,0.00022215,5]
[336645459,1724997044032,-527.35,0.00022215,5]
[336645461,1724997044042,-500.0,0.00022215,5]
[336645463,1724997044052,-2966.83,0.00022215,5]
[336645465,1724997044062,-586.06,0.00022215,5]
[336645467,1724997044071,-500.0,0.00022215,5]
[336645468,1724997044081,-743.69,0.00022215,5]
[336645470,1724997044090,-1867.78,0.00022215,5]
[336645472,1724997044099,-2270.01,0.00022215,5]
[336645474,1724997044109,-465.01821535,0.00022324,2]
[336645476,1724997044119,-7510.39304043,0.00022428,2]
[336645478,1724997044129,-907.8,0.00022457,3]
[336645480,1724997044139,-453.9,0.00022457,3]
[336645482,1724997044148,-500.0,0.00022459,5]
[336645484,1724997044158,-2294.15,0.00022467,5]
[336645486,1724997044167,-500.0,0.00022467,5]
[336645487,1724997044176,-3490.78,0.00022467,5]
[336645489,1724997044185,-5579.14,0.00022467,5]
[336645491,1724997044194,-1360.61,0.00022467,5]
[336645493,1724997044204,-1189.51,0.00022467,5]
[336645495,1724997044213,-500.0,0.00022467,5]
[336645497,1724997044222,-500.0,0.00022467,5]
[336645498,1724997044231,-270.88761066,0.00022489,5]
[336645500,1724997044241,-11342.43,0.00022489,5]
[336645502,1724997044251,-1705.93,0.00022489,5]
[336645504,1724997044260,-1448.5,0.00022489,5]
[336645506,1724997044270,-500.0,0.00022489,5]
[336645508,1724997044280,-527.35,0.00022489,5]
[336645510,1724997044290,-500.0,0.00022489,5]
[336645511,1724997044300,-2966.83,0.00022489,5]
[336645513,1724997044311,-500.0,0.00022489,5]
[336645515,1724997044320,-743.69,0.00022489,5]
[336645517,1724997044330,-1867.78,0.00022489,5]
[336645519,1724997044339,-2270.01,0.00022489,5]
[336645521,1724997044348,-637.86,0.000225,7]
[336645522,1724997044357,-1500.0,0.00022619,2]
[336645524,1724997044367,-10813.73,0.000227,14]
[336645526,1724997044377,-500.0,0.00022733,5]
[336645528,1724997044386,-2294.15,0.00022741,5]
[336645530,1724997044396,-500.0,0.00022741,5]
[336645532,1724997044405,-3490.78,0.00022741,5]
[336645534,1724997044415,-5579.14,0.00022741,5]
[336645536,1724997044424,-1360.61,0.00022741,5]
[336645537,1724997044433,-1189.51,0.00022741,5]
[336645539,1724997044442,-500.0,0.00022741,5]
[336645540,1724997044451,-500.0,0.00022741,5]
[336645541,1724997044464,-806.81,0.00022762,5]
[336645542,1724997044473,-11342.43,0.00022763,5]
[336645543,1724997044482,-1705.93,0.00022763,5]
[336645544,1724997044492,-1448.5,0.00022763,5]
[336645545,1724997044501,-500.0,0.00022763,5]
[336645546,1724997044511,-527.35,0.00022763,5]
[336645547,1724997044520,-500.0,0.00022763,5]
[336645548,1724997044529,-2966.83,0.00022763,5]
[336645549,1724997044538,-500.0,0.00022763,5]
[336645550,1724997044548,-743.69,0.00022763,5]
[336645551,1724997044557,-1867.78,0.00022763,5]
[336645552,1724997044566,-2270.01,0.00022763,5]
[336645553,1724997044575,-7510.39304043,0.00022898,2]
[336645554,1724997044584,-806.81,0.00022995,5]
[336645555,1724997044593,-806.81,0.00022995,5]
[336645556,1724997044602,-1143.79101486,0.00022996,5]
[336645557,1724997044611,-508.25812121,0.00022996,5]
[336645558,1724997044620,-500.0,0.00022996,5]
[336645559,1724997044630,-500.0,0.00022996,5]
[336645560,1724997044639,-283.32,0.00022996,5]
[336645561,1724997044648,-326.42,0.00022996,5]
[336645562,1724997044658,-500.0,0.00022996,5]
[336645563,1724997044667,-500.0,0.00022996,5]
[336645564,1724997044676,-500.0,0.00022996,5]
[336645565,1724997044685,-647.94718834,0.00022996,5]
[336645566,1724997044694,-502.86391195,0.00022996,5]